[Event "November 21 Late 2023"]
[Site "https://www.chess.com"]
[Date "2023.11.21"]
[Round "1"]
[White "Willy, Stephen"]
[Black "Spata, German"]
[Result "1-0"]
[Board "96"]
[TimeControl "180+1"]
[WhiteFideId "30981468"]
[BlackFideId "113026"]
[WhiteElo "2139"]
[BlackElo "2260"]
[WhiteTeam "USA"]
[BlackTeam "ARG"]
[WhiteClock "0:00:36"]
[BlackClock "0:00:00"]

1. e4 {[%clk 0:02:59]}  d5 {[%clk 0:02:54]} 2. exd5 {[%clk 0:02:55]}  Qxd5 {[%clk 0:02:52]} 3. Nc3 {[%clk 0:02:54]}  Qd6 {[%clk 0:02:50]} 4. d4 {[%clk 0:02:53]}  c6 {[%clk 0:02:39]} 5. Nf3 {[%clk 0:02:52]}  Bg4 {[%clk 0:02:35]} 6. h3 {[%clk 0:02:30]}  Bxf3 {[%clk 0:02:34]} 7. Qxf3 {[%clk 0:02:30]}  Nf6 {[%clk 0:02:32]} 8. Be3 {[%clk 0:02:27]}  e6 {[%clk 0:02:28]} 9. O-O-O {[%clk 0:02:26]}  Nbd7 {[%clk 0:02:27]} 10. Bc4 {[%clk 0:02:24]}  Be7 {[%clk 0:02:22]} 11. a3 {[%clk 0:02:12]}  O-O {[%clk 0:02:14]} 12. Bf4 {[%clk 0:02:12]}  e5 {[%clk 0:01:58]} 13. dxe5 {[%clk 0:02:08]}  Nxe5 {[%clk 0:01:45]} 14. Qe2 {[%clk 0:02:02]}  Qc5 {[%clk 0:01:32]} 15. Bxe5 {[%clk 0:01:49]}  Rfe8 {[%clk 0:01:31]} 16. Bd4 {[%clk 0:01:48]}  Qa5 {[%clk 0:01:28]} 17. Qf3 {[%clk 0:01:45]}  b5 {[%clk 0:01:19]} 18. Bb3 {[%clk 0:01:39]}  b4 {[%clk 0:01:19]} 19. axb4 {[%clk 0:01:36]}  Qxb4 {[%clk 0:01:20]} 20. Rhe1 {[%clk 0:01:26]}  a5 {[%clk 0:01:19]} 21. Bxf6 {[%clk 0:01:19]}  Bxf6 {[%clk 0:01:19]} 22. Rxe8+ {[%clk 0:01:12]}  Rxe8 {[%clk 0:01:18]} 23. Qxc6 {[%clk 0:01:12]}  Rb8 {[%clk 0:01:08]} 24. Qc4 {[%clk 0:01:09]}  Qb6 {[%clk 0:00:40]} 25. Qxf7+ {[%clk 0:01:07]}  Kh8 {[%clk 0:00:40]} 26. Re1 {[%clk 0:01:00]}  Qc6 {[%clk 0:00:27]} 27. Ba4 {[%clk 0:00:51]}  Bg5+ {[%clk 0:00:21]} 28. f4 {[%clk 0:00:49]}  Qg6 {[%clk 0:00:03]} 29. Qxg6 {[%clk 0:00:46]}  Bxf4+ {[%clk 0:00:03]} 30. Kb1 {[%clk 0:00:45]}  hxg6 {[%clk 0:00:04]} 31. Re8+ {[%clk 0:00:41]}  Rxe8 {[%clk 0:00:03]} 32. Bxe8 {[%clk 0:00:41]}  g5 {[%clk 0:00:04]} 33. Nd5 {[%clk 0:00:39]}  Bd6 {[%clk 0:00:04]} 34. Bg6 {[%clk 0:00:37]}  Kg8 {[%clk 0:00:01]} 35. c4 {[%clk 0:00:36]}  Kf8 {[%clk 0:00:01]} 36. Kc2 {[%clk 0:00:37]}  Bc5 {[%clk 0:00:00]} 37. Kd3 {[%clk 0:00:36]} 1-0

[Event "November 21 Late 2023"]
[Site "https://www.chess.com"]
[Date "2023.11.21"]
[Round "1"]
[White "Leschinsky, Gary"]
[Black "MKlose11"]
[Result "0-1"]
[Board "98"]
[TimeControl "180+1"]
[WhiteFideId "30951321"]
[WhiteElo "2020"]
[BlackElo "2637"]
[WhiteTeam "USA"]
[WhiteClock "0:00:14"]
[BlackClock "0:01:38"]

1. d4 {[%clk 0:03:00]}  Nf6 {[%clk 0:02:57]} 2. c4 {[%clk 0:02:55]}  c5 {[%clk 0:02:57]} 3. d5 {[%clk 0:02:55]}  b5 {[%clk 0:02:57]} 4. cxb5 {[%clk 0:02:56]}  a6 {[%clk 0:02:58]} 5. e3 {[%clk 0:02:56]}  g6 {[%clk 0:02:57]} 6. Nc3 {[%clk 0:02:46]}  Bg7 {[%clk 0:02:56]} 7. a4 {[%clk 0:02:45]}  O-O {[%clk 0:02:55]} 8. Nf3 {[%clk 0:02:43]}  d6 {[%clk 0:02:56]} 9. e4 {[%clk 0:02:43]}  Nbd7 {[%clk 0:02:55]} 10. Bd2 {[%clk 0:02:43]}  Ne8 {[%clk 0:02:55]} 11. Be2 {[%clk 0:02:29]}  axb5 {[%clk 0:02:54]} 12. Bxb5 {[%clk 0:02:29]}  Nc7 {[%clk 0:02:52]} 13. O-O {[%clk 0:02:29]}  Ba6 {[%clk 0:02:51]} 14. Qe2 {[%clk 0:02:28]}  Qc8 {[%clk 0:02:47]} 15. Bg5 {[%clk 0:02:25]}  Re8 {[%clk 0:02:46]} 16. Nd2 {[%clk 0:02:21]}  Rb8 {[%clk 0:02:43]} 17. Bxa6 {[%clk 0:02:03]}  Qxa6 {[%clk 0:02:40]} 18. Qxa6 {[%clk 0:02:02]}  Nxa6 {[%clk 0:02:41]} 19. Nb5 {[%clk 0:01:58]}  Bxb2 {[%clk 0:02:34]} 20. Rab1 {[%clk 0:01:58]}  Bg7 {[%clk 0:02:30]} 21. Nc4 {[%clk 0:01:54]}  Kf8 {[%clk 0:02:21]} 22. Rfc1 {[%clk 0:01:44]}  Ne5 {[%clk 0:02:11]} 23. Nxe5 {[%clk 0:00:46]}  Bxe5 {[%clk 0:02:12]} 24. Be3 {[%clk 0:00:41]}  Rb7 {[%clk 0:02:06]} 25. f4 {[%clk 0:00:39]}  Bg7 {[%clk 0:02:04]} 26. Kf2 {[%clk 0:00:35]}  Reb8 {[%clk 0:02:04]} 27. Rd1 {[%clk 0:00:27]}  Nc7 {[%clk 0:02:00]} 28. Na3 {[%clk 0:00:25]}  Rb4 {[%clk 0:01:57]} 29. Kf3 {[%clk 0:00:22]}  Na6 {[%clk 0:01:53]} 30. Bd2 {[%clk 0:00:21]}  Rxa4 {[%clk 0:01:48]} 31. Rxb8+ {[%clk 0:00:21]}  Nxb8 {[%clk 0:01:47]} 32. Bc1 {[%clk 0:00:20]}  Na6 {[%clk 0:01:44]} 33. Rd3 {[%clk 0:00:17]}  Nb4 {[%clk 0:01:42]} 34. Rb3 {[%clk 0:00:14]}  f5 {[%clk 0:01:38]} 0-1

[Event "November 21 Late 2023"]
[Site "https://www.chess.com"]
[Date "2023.11.21"]
[Round "1"]
[White "Lamard, Guillaume"]
[Black "SergioMoralesG"]
[Result "1/2-1/2"]
[Board "99"]
[TimeControl "180+1"]
[WhiteFideId "600261"]
[WhiteElo "2409"]
[BlackElo "2363"]
[WhiteTeam "FRA"]
[WhiteClock "0:00:33"]
[BlackClock "0:00:10"]

1. Nf3 {[%clk 0:03:00]}  d5 {[%clk 0:02:48]} 2. g3 {[%clk 0:02:58]}  Bg4 {[%clk 0:02:48]} 3. Bg2 {[%clk 0:02:57]}  Nd7 {[%clk 0:02:49]} 4. d4 {[%clk 0:02:57]}  Ngf6 {[%clk 0:02:48]} 5. c4 {[%clk 0:02:54]}  c6 {[%clk 0:02:47]} 6. O-O {[%clk 0:02:53]}  e6 {[%clk 0:02:47]} 7. h3 {[%clk 0:02:52]}  Bxf3 {[%clk 0:02:46]} 8. Bxf3 {[%clk 0:02:52]}  Be7 {[%clk 0:02:44]} 9. Qc2 {[%clk 0:02:47]}  O-O {[%clk 0:02:42]} 10. b3 {[%clk 0:02:46]}  Rc8 {[%clk 0:02:40]} 11. Bb2 {[%clk 0:02:43]}  h6 {[%clk 0:02:35]} 12. c5 {[%clk 0:02:39]}  Qc7 {[%clk 0:02:30]} 13. Nd2 {[%clk 0:02:20]}  e5 {[%clk 0:02:21]} 14. e4 {[%clk 0:02:06]}  Nxe4 {[%clk 0:02:15]} 15. Nxe4 {[%clk 0:02:05]}  dxe4 {[%clk 0:02:14]} 16. Bxe4 {[%clk 0:02:05]}  exd4 {[%clk 0:01:59]} 17. Bxd4 {[%clk 0:02:02]}  Bf6 {[%clk 0:01:59]} 18. Rad1 {[%clk 0:01:55]}  Bxd4 {[%clk 0:01:58]} 19. Rxd4 {[%clk 0:01:56]}  Rcd8 {[%clk 0:01:55]} 20. Bg2 {[%clk 0:01:43]}  Nf6 {[%clk 0:01:43]} 21. Rf4 {[%clk 0:01:30]}  Qe5 {[%clk 0:01:37]} 22. b4 {[%clk 0:01:23]}  a6 {[%clk 0:01:35]} 23. a4 {[%clk 0:01:21]}  Rd7 {[%clk 0:01:33]} 24. Rf5 {[%clk 0:01:17]}  Qe7 {[%clk 0:01:26]} 25. b5 {[%clk 0:01:09]}  axb5 {[%clk 0:01:23]} 26. axb5 {[%clk 0:01:09]}  cxb5 {[%clk 0:01:23]} 27. Rb1 {[%clk 0:01:10]}  Rfd8 {[%clk 0:01:17]} 28. Qb3 {[%clk 0:01:08]}  Rd2 {[%clk 0:00:58]} 29. Qxb5 {[%clk 0:01:01]}  Rc2 {[%clk 0:00:48]} 30. Qxb7 {[%clk 0:00:56]}  Qe2 {[%clk 0:00:38]} 31. Rf1 {[%clk 0:00:40]}  Rd1 {[%clk 0:00:17]} 32. Qf3 {[%clk 0:00:30]}  Rxf1+ {[%clk 0:00:15]} 33. Bxf1 {[%clk 0:00:31]}  Qxf3 {[%clk 0:00:15]} 34. Rxf3 {[%clk 0:00:31]}  Rxc5 {[%clk 0:00:16]} 35. Kg2 {[%clk 0:00:32]}  Kh7 {[%clk 0:00:16]} 36. Rd3 {[%clk 0:00:32]}  g6 {[%clk 0:00:15]} 37. Ra3 {[%clk 0:00:33]}  Kg7 {[%clk 0:00:15]} 38. h4 {[%clk 0:00:33]}  Rc7 {[%clk 0:00:14]} 39. Ra2 {[%clk 0:00:30]}  h5 {[%clk 0:00:15]} 40. Be2 {[%clk 0:00:31]}  Re7 {[%clk 0:00:15]} 41. Bf3 {[%clk 0:00:31]}  Rc7 {[%clk 0:00:15]} 42. Ra5 {[%clk 0:00:32]}  Re7 {[%clk 0:00:15]} 43. Rc5 {[%clk 0:00:32]}  Ra7 {[%clk 0:00:15]} 44. Bc6 {[%clk 0:00:25]}  Rc7 {[%clk 0:00:14]} 45. Rc4 {[%clk 0:00:25]}  Re7 {[%clk 0:00:13]} 46. Ba4 {[%clk 0:00:21]}  Ra7 {[%clk 0:00:13]} 47. Bb3 {[%clk 0:00:21]}  Rb7 {[%clk 0:00:13]} 48. Bc2 {[%clk 0:00:20]}  Re7 {[%clk 0:00:13]} 49. Bd1 {[%clk 0:00:20]}  Rd7 {[%clk 0:00:12]} 50. Be2 {[%clk 0:00:21]}  Re7 {[%clk 0:00:13]} 51. Rc2 {[%clk 0:00:21]}  Ra7 {[%clk 0:00:12]} 52. f3 {[%clk 0:00:22]}  Re7 {[%clk 0:00:12]} 53. g4 {[%clk 0:00:22]}  hxg4 {[%clk 0:00:09]} 54. fxg4 {[%clk 0:00:23]}  Re8 {[%clk 0:00:08]} 55. Bf3 {[%clk 0:00:23]}  Re7 {[%clk 0:00:08]} 56. Kg3 {[%clk 0:00:24]}  Ra7 {[%clk 0:00:08]} 57. Rc6 {[%clk 0:00:23]}  Re7 {[%clk 0:00:07]} 58. g5 {[%clk 0:00:22]}  Nh5+ {[%clk 0:00:05]} 59. Bxh5 {[%clk 0:00:19]}  gxh5 {[%clk 0:00:06]} 60. Rh6 {[%clk 0:00:19]}  Re5 {[%clk 0:00:06]} 61. Kf4 {[%clk 0:00:16]}  Ra5 {[%clk 0:00:05]} 62. Rxh5 {[%clk 0:00:16]}  Ra4+ {[%clk 0:00:04]} 63. Kf5 {[%clk 0:00:16]}  Ra5+ {[%clk 0:00:04]} 64. Kg4 {[%clk 0:00:16]}  Ra4+ {[%clk 0:00:05]} 65. Kf3 {[%clk 0:00:16]}  f6 {[%clk 0:00:05]} 66. Rh6 {[%clk 0:00:15]}  fxg5 {[%clk 0:00:04]} 67. hxg5 {[%clk 0:00:16]}  Ra3+ {[%clk 0:00:04]} 68. Kg4 {[%clk 0:00:17]}  Ra5 {[%clk 0:00:04]} 69. Kh5 {[%clk 0:00:17]}  Rb5 {[%clk 0:00:05]} 70. Rd6 {[%clk 0:00:18]}  Rb7 {[%clk 0:00:05]} 71. Rd8 {[%clk 0:00:18]}  Ra7 {[%clk 0:00:05]} 72. Rb8 {[%clk 0:00:18]}  Rc7 {[%clk 0:00:05]} 73. Rb6 {[%clk 0:00:18]}  Ra7 {[%clk 0:00:05]} 74. Re6 {[%clk 0:00:19]}  Rf7 {[%clk 0:00:05]} 75. Kg4 {[%clk 0:00:20]}  Rc7 {[%clk 0:00:06]} 76. Rf6 {[%clk 0:00:20]}  Rc4+ {[%clk 0:00:06]} 77. Kf5 {[%clk 0:00:21]}  Rc7 {[%clk 0:00:07]} 78. Rd6 {[%clk 0:00:21]}  Ra7 {[%clk 0:00:07]} 79. Ke6 {[%clk 0:00:21]}  Rb7 {[%clk 0:00:07]} 80. Rd5 {[%clk 0:00:22]}  Ra7 {[%clk 0:00:07]} 81. Rf5 {[%clk 0:00:22]}  Ra6+ {[%clk 0:00:07]} 82. Ke5 {[%clk 0:00:22]}  Ra7 {[%clk 0:00:08]} 83. Kf4 {[%clk 0:00:23]}  Ra4+ {[%clk 0:00:08]} 84. Kg3 {[%clk 0:00:23]}  Ra7 {[%clk 0:00:09]} 85. Rf6 {[%clk 0:00:23]}  Ra3+ {[%clk 0:00:09]} 86. Kg4 {[%clk 0:00:24]}  Ra7 {[%clk 0:00:10]} 87. Kh5 {[%clk 0:00:25]}  Rc7 {[%clk 0:00:08]} 88. Rd6 {[%clk 0:00:25]}  Ra7 {[%clk 0:00:08]} 89. Rb6 {[%clk 0:00:25]}  Re7 {[%clk 0:00:09]} 90. Rh6 {[%clk 0:00:25]}  Rc7 {[%clk 0:00:09]} 91. Re6 {[%clk 0:00:25]}  Rf7 {[%clk 0:00:08]} 92. Kg4 {[%clk 0:00:25]}  Ra7 {[%clk 0:00:09]} 93. Re4 {[%clk 0:00:26]}  Rb7 {[%clk 0:00:08]} 94. Rf4 {[%clk 0:00:26]}  Ra7 {[%clk 0:00:09]} 95. Kf5 {[%clk 0:00:26]}  Rf7+ {[%clk 0:00:08]} 96. Ke5 {[%clk 0:00:26]}  Rxf4 {[%clk 0:00:08]} 97. Kxf4 {[%clk 0:00:26]}  Kg6 {[%clk 0:00:08]} 98. Kg4 {[%clk 0:00:27]}  Kg7 {[%clk 0:00:08]} 99. Kf5 {[%clk 0:00:28]}  Kf7 {[%clk 0:00:09]} 100. g6+ {[%clk 0:00:29]}  Kg7 {[%clk 0:00:09]} 101. Kg5 {[%clk 0:00:30]}  Kg8 {[%clk 0:00:10]} 102. Kh6 {[%clk 0:00:30]}  Kh8 {[%clk 0:00:10]} 103. Kh5 {[%clk 0:00:30]}  Kg7 {[%clk 0:00:10]} 104. Kg5 {[%clk 0:00:31]}  Kg8 {[%clk 0:00:10]} 105. Kf6 {[%clk 0:00:32]}  Kf8 {[%clk 0:00:11]} 106. Kf5 {[%clk 0:00:33]}  Kg7 {[%clk 0:00:10]} 107. Kg5 {[%clk 0:00:33]} 1/2-1/2

[Event "November 21 Late 2023"]
[Site "https://www.chess.com"]
[Date "2023.11.21"]
[Round "1"]
[White "PapaieDudu"]
[Black "Yi, Richard"]
[Result "1-0"]
[Board "100"]
[TimeControl "180+1"]
[BlackFideId "2079518"]
[WhiteElo "2362"]
[BlackElo "2147"]
[BlackTeam "USA"]
[WhiteClock "0:00:05"]
[BlackClock "0:00:00"]

1. d4 {[%clk 0:02:59]}  Nf6 {[%clk 0:02:59]} 2. Nf3 {[%clk 0:02:59]}  g6 {[%clk 0:02:56]} 3. c4 {[%clk 0:03:00]}  Bg7 {[%clk 0:02:57]} 4. Nc3 {[%clk 0:03:00]}  d5 {[%clk 0:02:57]} 5. e3 {[%clk 0:03:01]}  O-O {[%clk 0:02:57]} 6. Be2 {[%clk 0:03:02]}  c5 {[%clk 0:02:57]} 7. O-O {[%clk 0:03:01]}  cxd4 {[%clk 0:02:56]} 8. exd4 {[%clk 0:03:02]}  dxc4 {[%clk 0:02:56]} 9. Bxc4 {[%clk 0:03:03]}  a6 {[%clk 0:02:56]} 10. a4 {[%clk 0:03:02]}  Nc6 {[%clk 0:02:56]} 11. h3 {[%clk 0:03:02]}  Bf5 {[%clk 0:02:52]} 12. Be3 {[%clk 0:03:02]}  Nb4 {[%clk 0:02:49]} 13. Qd2 {[%clk 0:03:02]}  Rc8 {[%clk 0:02:43]} 14. Be2 {[%clk 0:02:59]}  Nfd5 {[%clk 0:02:24]} 15. Rac1 {[%clk 0:02:55]}  Qd6 {[%clk 0:02:18]} 16. Bh6 {[%clk 0:02:52]}  Rfd8 {[%clk 0:02:08]} 17. Bxg7 {[%clk 0:02:51]}  Kxg7 {[%clk 0:02:08]} 18. Rfd1 {[%clk 0:02:51]}  Nf4 {[%clk 0:01:57]} 19. Ne5 {[%clk 0:02:43]}  Nxe2+ {[%clk 0:01:47]} 20. Qxe2 {[%clk 0:02:41]}  Qe6 {[%clk 0:01:39]} 21. g4 {[%clk 0:02:33]}  Bc2 {[%clk 0:01:23]} 22. Rxc2 {[%clk 0:02:30]}  Nxc2 {[%clk 0:01:24]} 23. Qxc2 {[%clk 0:02:30]}  Qb6 {[%clk 0:01:19]} 24. Qd2 {[%clk 0:02:15]}  Rd6 {[%clk 0:01:11]} 25. Ne4 {[%clk 0:02:09]}  Rd5 {[%clk 0:01:09]} 26. Nf3 {[%clk 0:01:37]}  Qb3 {[%clk 0:01:03]} 27. Nc3 {[%clk 0:01:35]}  Rd6 {[%clk 0:01:01]} 28. Re1 {[%clk 0:01:34]}  e6 {[%clk 0:00:58]} 29. Qf4 {[%clk 0:01:27]}  Rd7 {[%clk 0:00:56]} 30. Ne5 {[%clk 0:01:26]}  Rdc7 {[%clk 0:00:54]} 31. Ne4 {[%clk 0:01:22]}  Qb4 {[%clk 0:00:50]} 32. Qf6+ {[%clk 0:01:19]}  Kg8 {[%clk 0:00:49]} 33. Nf3 {[%clk 0:00:38]}  Qxb2 {[%clk 0:00:40]} 34. Neg5 {[%clk 0:00:35]}  Qb3 {[%clk 0:00:31]} 35. Re3 {[%clk 0:00:33]}  Qxa4 {[%clk 0:00:29]} 36. Ne5 {[%clk 0:00:28]}  Rf8 {[%clk 0:00:25]} 37. Rf3 {[%clk 0:00:21]}  Qd1+ {[%clk 0:00:22]} 38. Kg2 {[%clk 0:00:21]}  Qxd4 {[%clk 0:00:22]} 39. Rf4 {[%clk 0:00:12]}  Qd5+ {[%clk 0:00:22]} 40. Kg3 {[%clk 0:00:12]}  Qb3+ {[%clk 0:00:15]} 41. Rf3 {[%clk 0:00:08]}  Qb2 {[%clk 0:00:12]} 42. h4 {[%clk 0:00:05]}  Rc5 {[%clk 0:00:07]} 43. Re3 {[%clk 0:00:04]}  Rc7 {[%clk 0:00:04]} 44. h5 {[%clk 0:00:04]}  h6 {[%clk 0:00:02]} 45. Ne4 {[%clk 0:00:04]}  gxh5 {[%clk 0:00:01]} 46. gxh5 {[%clk 0:00:04]}  Kh7 {[%clk 0:00:01]} 47. Kf4 {[%clk 0:00:05]}  Qc1 {[%clk 0:00:00]} 48. Ng3 {[%clk 0:00:05]} 1-0

[Event "November 21 Late 2023"]
[Site "https://www.chess.com"]
[Date "2023.11.21"]
[Round "1"]
[White "Szente Varga, Fruzsina"]
[Black "Poltorak, Sebastian"]
[Result "0-1"]
[Board "104"]
[TimeControl "180+1"]
[WhiteFideId "712264"]
[BlackFideId "1199498"]
[WhiteElo "1994"]
[BlackElo "2250"]
[WhiteTeam "HUN"]
[BlackTeam "POL"]
[WhiteClock "0:00:19"]
[BlackClock "0:01:10"]

1. e4 {[%clk 0:03:00]}  c6 {[%clk 0:02:56]} 2. d4 {[%clk 0:03:00]}  d5 {[%clk 0:02:57]} 3. exd5 {[%clk 0:03:00]}  cxd5 {[%clk 0:02:57]} 4. c3 {[%clk 0:03:01]}  Bf5 {[%clk 0:02:54]} 5. Ne2 {[%clk 0:02:51]}  Nc6 {[%clk 0:02:52]} 6. Ng3 {[%clk 0:02:51]}  Bg6 {[%clk 0:02:51]} 7. h4 {[%clk 0:02:50]}  f6 {[%clk 0:02:49]} 8. h5 {[%clk 0:02:48]}  Bf7 {[%clk 0:02:49]} 9. Bd3 {[%clk 0:02:48]}  e5 {[%clk 0:02:48]} 10. O-O {[%clk 0:02:26]}  e4 {[%clk 0:02:42]} 11. Re1 {[%clk 0:02:13]}  Nge7 {[%clk 0:02:31]} 12. Bc2 {[%clk 0:02:05]}  g6 {[%clk 0:02:27]} 13. Bb3 {[%clk 0:01:53]}  Bg7 {[%clk 0:02:20]} 14. h6 {[%clk 0:01:40]}  Bf8 {[%clk 0:02:18]} 15. f3 {[%clk 0:01:28]}  f5 {[%clk 0:02:16]} 16. Bg5 {[%clk 0:01:25]}  Qd7 {[%clk 0:02:02]} 17. fxe4 {[%clk 0:01:17]}  dxe4 {[%clk 0:01:46]} 18. Bxf7+ {[%clk 0:01:14]}  Kxf7 {[%clk 0:01:45]} 19. Qb3+ {[%clk 0:01:15]}  Qd5 {[%clk 0:01:41]} 20. Nd2 {[%clk 0:00:47]}  Qxb3 {[%clk 0:01:40]} 21. Nxb3 {[%clk 0:00:48]}  Nd5 {[%clk 0:01:38]} 22. a3 {[%clk 0:00:41]}  Be7 {[%clk 0:01:37]} 23. Bxe7 {[%clk 0:00:41]}  Ncxe7 {[%clk 0:01:35]} 24. c4 {[%clk 0:00:42]}  Nf6 {[%clk 0:01:32]} 25. d5 {[%clk 0:00:39]}  Rhd8 {[%clk 0:01:31]} 26. Nd4 {[%clk 0:00:35]}  Rac8 {[%clk 0:01:31]} 27. Rac1 {[%clk 0:00:34]}  Rd6 {[%clk 0:01:27]} 28. Ne6 {[%clk 0:00:34]}  Rxe6 {[%clk 0:01:27]} 29. dxe6+ {[%clk 0:00:34]}  Kxe6 {[%clk 0:01:28]} 30. Ne2 {[%clk 0:00:35]}  g5 {[%clk 0:01:24]} 31. Nd4+ {[%clk 0:00:34]}  Ke5 {[%clk 0:01:24]} 32. Nb5 {[%clk 0:00:35]}  a6 {[%clk 0:01:23]} 33. Nc3 {[%clk 0:00:24]}  Rxc4 {[%clk 0:01:23]} 34. Ne2 {[%clk 0:00:23]}  Rxc1 {[%clk 0:01:22]} 35. Rxc1 {[%clk 0:00:24]}  Nfd5 {[%clk 0:01:19]} 36. Nc3 {[%clk 0:00:23]}  Nf4 {[%clk 0:01:14]} 37. Na4 {[%clk 0:00:22]}  Ne2+ {[%clk 0:01:06]} 38. Kf2 {[%clk 0:00:22]}  Nxc1 {[%clk 0:01:07]} 39. Nc5 {[%clk 0:00:22]}  Nd3+ {[%clk 0:01:06]} 40. Nxd3+ {[%clk 0:00:21]}  exd3 {[%clk 0:01:07]} 41. Ke3 {[%clk 0:00:22]}  f4+ {[%clk 0:01:08]} 42. Kxd3 {[%clk 0:00:22]}  g4 {[%clk 0:01:09]} 43. b3 {[%clk 0:00:20]}  f3 {[%clk 0:01:09]} 44. gxf3 {[%clk 0:00:20]}  g3 {[%clk 0:01:10]} 45. Ke3 {[%clk 0:00:21]}  Nf5+ {[%clk 0:01:09]} 46. Ke2 {[%clk 0:00:19]}  Kf4 {[%clk 0:01:10]} 0-1

[Event "November 21 Late 2023"]
[Site "https://www.chess.com"]
[Date "2023.11.21"]
[Round "1"]
[White "Vlassov, Nikolai"]
[Black "Bashylina, Luisa"]
[Result "0-1"]
[Board "105"]
[TimeControl "180+1"]
[WhiteFideId "4103360"]
[BlackFideId "12983292"]
[WhiteElo "2324"]
[BlackElo "2067"]
[WhiteTeam "FID"]
[BlackTeam "GER"]
[WhiteClock "0:00:00"]
[BlackClock "0:00:04"]

1. e4 {[%clk 0:02:55]}  c5 {[%clk 0:02:58]} 2. c3 {[%clk 0:02:54]}  g6 {[%clk 0:02:52]} 3. d4 {[%clk 0:02:54]}  cxd4 {[%clk 0:02:51]} 4. cxd4 {[%clk 0:02:49]}  Bg7 {[%clk 0:02:51]} 5. Nc3 {[%clk 0:02:46]}  d6 {[%clk 0:02:51]} 6. Be3 {[%clk 0:02:37]}  Nf6 {[%clk 0:02:51]} 7. f3 {[%clk 0:02:37]}  Nc6 {[%clk 0:02:51]} 8. Qd2 {[%clk 0:02:37]}  a6 {[%clk 0:02:51]} 9. Nge2 {[%clk 0:02:28]}  b5 {[%clk 0:02:50]} 10. g4 {[%clk 0:02:20]}  Bb7 {[%clk 0:02:40]} 11. g5 {[%clk 0:02:15]}  Nd7 {[%clk 0:02:39]} 12. h4 {[%clk 0:02:10]}  b4 {[%clk 0:02:33]} 13. Nd5 {[%clk 0:02:08]}  a5 {[%clk 0:02:18]} 14. h5 {[%clk 0:02:07]}  gxh5 {[%clk 0:02:14]} 15. Ng3 {[%clk 0:02:01]}  Rg8 {[%clk 0:01:43]} 16. Rxh5 {[%clk 0:01:57]}  e6 {[%clk 0:01:41]} 17. Nf4 {[%clk 0:01:53]}  e5 {[%clk 0:01:29]} 18. dxe5 {[%clk 0:01:41]}  Ndxe5 {[%clk 0:01:28]} 19. Be2 {[%clk 0:01:40]}  Ba6 {[%clk 0:01:20]} 20. Nd5 {[%clk 0:01:31]}  Rc8 {[%clk 0:00:48]} 21. Nf5 {[%clk 0:01:27]}  Nc4 {[%clk 0:00:30]} 22. Bxc4 {[%clk 0:01:21]}  Bxc4 {[%clk 0:00:31]} 23. Nb6 {[%clk 0:00:54]}  Ne5 {[%clk 0:00:14]} 24. Nxd6+ {[%clk 0:00:43]}  Kf8 {[%clk 0:00:13]} 25. Kf2 {[%clk 0:00:19]}  Nd3+ {[%clk 0:00:14]} 26. Kg2 {[%clk 0:00:20]}  Qxd6 {[%clk 0:00:13]} 27. Nxc8 {[%clk 0:00:20]}  Qc7 {[%clk 0:00:13]} 28. b3 {[%clk 0:00:18]}  Bxa1 {[%clk 0:00:11]} 29. bxc4 {[%clk 0:00:17]}  Qxc8 {[%clk 0:00:10]} 30. Qxd3 {[%clk 0:00:17]}  Be5 {[%clk 0:00:11]} 31. Qd5 {[%clk 0:00:16]}  Qc7 {[%clk 0:00:08]} 32. Rxh7 {[%clk 0:00:16]}  Ke8 {[%clk 0:00:03]} 33. Qa8+ {[%clk 0:00:09]}  Qd8 {[%clk 0:00:02]} 34. Qxd8+ {[%clk 0:00:09]}  Kxd8 {[%clk 0:00:03]} 35. Rxf7 {[%clk 0:00:09]}  a4 {[%clk 0:00:04]} 36. f4 {[%clk 0:00:09]}  Bc3 {[%clk 0:00:01]} 37. Ra7 {[%clk 0:00:06]}  Ke8 {[%clk 0:00:02]} 38. f5 {[%clk 0:00:02]}  b3 {[%clk 0:00:01]} 39. axb3 {[%clk 0:00:02]}  axb3 {[%clk 0:00:02]} 40. Rb7 {[%clk 0:00:01]}  b2 {[%clk 0:00:03]} 41. Kf3 {[%clk 0:00:01]}  Kd8 {[%clk 0:00:03]} 42. g6 {[%clk 0:00:01]}  Kc8 {[%clk 0:00:03]} 43. Rb3 {[%clk 0:00:02]}  Kc7 {[%clk 0:00:03]} 44. c5 {[%clk 0:00:00]}  Kc6 {[%clk 0:00:04]} 0-1

[Event "November 21 Late 2023"]
[Site "https://www.chess.com"]
[Date "2023.11.21"]
[Round "1"]
[White "Romero Ruscalleda, Josep"]
[Black "Koksal, Ege"]
[Result "0-1"]
[Board "106"]
[TimeControl "180+1"]
[WhiteFideId "2231859"]
[BlackFideId "6317626"]
[WhiteElo "2183"]
[BlackElo "2230"]
[WhiteTeam "ESP"]
[BlackTeam "TUR"]
[WhiteClock "0:01:21"]
[BlackClock "0:02:02"]

1. e4 {[%clk 0:02:58]}  e5 {[%clk 0:03:00]} 2. Nf3 {[%clk 0:02:58]}  Nc6 {[%clk 0:03:00]} 3. Bc4 {[%clk 0:02:57]}  Bc5 {[%clk 0:02:59]} 4. c3 {[%clk 0:02:57]}  Nf6 {[%clk 0:03:00]} 5. d3 {[%clk 0:02:54]}  d6 {[%clk 0:03:00]} 6. Nbd2 {[%clk 0:02:53]}  a6 {[%clk 0:03:00]} 7. Nf1 {[%clk 0:02:51]}  Ba7 {[%clk 0:03:00]} 8. Be3 {[%clk 0:02:51]}  h6 {[%clk 0:02:58]} 9. Bxa7 {[%clk 0:02:45]}  Rxa7 {[%clk 0:02:59]} 10. Ne3 {[%clk 0:02:45]}  Ra8 {[%clk 0:02:59]} 11. O-O {[%clk 0:02:44]}  O-O {[%clk 0:02:57]} 12. b4 {[%clk 0:02:42]}  Ng4 {[%clk 0:02:56]} 13. Qd2 {[%clk 0:02:25]}  Nxe3 {[%clk 0:02:55]} 14. Qxe3 {[%clk 0:02:24]}  Kh8 {[%clk 0:02:50]} 15. Nd2 {[%clk 0:02:18]}  f5 {[%clk 0:02:43]} 16. f4 {[%clk 0:02:18]}  fxe4 {[%clk 0:02:39]} 17. Nxe4 {[%clk 0:02:16]}  d5 {[%clk 0:02:32]} 18. Bxd5 {[%clk 0:02:14]}  Qxd5 {[%clk 0:02:31]} 19. fxe5 {[%clk 0:02:14]}  Bf5 {[%clk 0:02:24]} 20. Nc5 {[%clk 0:02:06]}  b6 {[%clk 0:02:16]} 21. Nb3 {[%clk 0:01:50]}  Qxd3 {[%clk 0:02:12]} 22. Rae1 {[%clk 0:01:43]}  Qxe3+ {[%clk 0:02:09]} 23. Rxe3 {[%clk 0:01:43]}  Be6 {[%clk 0:02:10]} 24. Nd2 {[%clk 0:01:40]}  Rxf1+ {[%clk 0:02:07]} 25. Kxf1 {[%clk 0:01:37]}  Bxa2 {[%clk 0:02:08]} 26. Ne4 {[%clk 0:01:37]}  Be6 {[%clk 0:02:05]} 27. Ng3 {[%clk 0:01:34]}  a5 {[%clk 0:02:05]} 28. b5 {[%clk 0:01:33]}  Ne7 {[%clk 0:02:03]} 29. h3 {[%clk 0:01:26]}  a4 {[%clk 0:02:03]} 30. c4 {[%clk 0:01:23]}  a3 {[%clk 0:02:03]} 31. Re1 {[%clk 0:01:21]}  Bxc4+ {[%clk 0:02:02]} 0-1